[Event "FIDE World Cup O10-B 2024"]
[Site "Batumi"]
[Date "2024.06.26"]
[Round "4.1"]
[White "Xia, Joshua"]
[Black "Zabelin, Platon"]
[Result "1/2-1/2"]
[ECO "B12"]
[WhiteElo "2060"]
[BlackElo "1799"]
[Annotator "NA RC"]
[PlyCount "65"]
[EventDate "2024.06.23"]
[EventType "swiss"]
[EventCountry "GEO"]
[SourceTitle "playchess.com"]
[Source "ChessBase"]
[SourceQuality "1"]
[TimeControl "5400+30"]

1. e4 c6 2. d4 d5 3. e5 Bf5 4. h4 h5 5. Bd3 Bxd3 6. Qxd3 Qa5+ 7. Nd2 e6 8. Ne2 Nh6 9. O-O Qa6 10. c4 Be7 11. g3 Nd7 12. Nf4 Nf5 13. b3 Nb6 14. Qc3 g5 15. hxg5 Bxg5 16. Nd3 Bxd2 17. Bxd2 Nd7 18. c5 Rg8 19. Bf4 h4 20. Kg2 O-O-O 21. Kf3 hxg3 22. fxg3 f6 23. Rg1 fxe5 24. Nxe5 Nxe5+ 25. Bxe5 Rdf8 26. Bf4 Nxg3 27. Qe3 Ne4 28. a4 Qa5 29. Rxg8 Rxg8 30. Rg1 Rh8 31. Rg7 Rh3+ 32. Bg3 Qd8 33. Kg2 1/2-1/2

[Event "FIDE World Cup O10-B 2024"]
[Site "Batumi"]
[Date "2024.06.26"]
[Round "4.2"]
[White "Yu, Zechen"]
[Black "Modith Aaroh Mutyalapati"]
[Result "1/2-1/2"]
[ECO "C14"]
[WhiteElo "1889"]
[BlackElo "1866"]
[Annotator "NA RC"]
[PlyCount "102"]
[EventDate "2024.06.23"]
[EventType "swiss"]
[EventCountry "GEO"]
[SourceTitle "playchess.com"]
[Source "ChessBase"]
[SourceQuality "1"]
[TimeControl "5400+30"]

1. e4 {[%emt 0:03:07]} e6 {[%emt 0:02:21]} 2. d4 {[%emt 0:00:30]} d5 {[%emt 0:00:30]} 3. Nc3 {[%emt 0:00:30]} Nf6 {[%emt 0:00:30]} 4. Bg5 {[%emt 0:00:30]} Be7 {[%emt 0:00:30]} 5. e5 {[%emt 0:00:30]} Nfd7 {[%emt 0:00:30]} 6. Bxe7 {[%emt 0:00:30]} Qxe7 {[%emt 0:00:30]} 7. Qd2 {[%emt 0:00:30]} a6 {[%emt 0:00:30]} 8. f4 {[%emt 0:00:30]} c5 {[%emt 0:00:30]} 9. Nf3 {[%emt 0:00:30]} Nc6 {[%emt 0:00:30]} 10. Ne2 {[%emt 0:00:30]} b5 {[%emt 0:00:30]} 11. c3 {[%emt 0:00:30]} f6 {[%emt 0:00:30]} 12. exf6 {[%emt 0:00:30]} Nxf6 {[%emt 0:00:30]} 13. Ng3 {[%emt 0:00:30]} Bb7 {[%emt 0:00:30]} 14. Bd3 {[%emt 0:00:30]} c4 {[%emt 0:00:30]} 15. Bc2 {[%emt 0:00:30]} O-O-O {[%emt 0:00:30]} 16. O-O-O {[%emt 0:00:30]} g6 {[%emt 0:00:30]} (16... Rde8 $142) 17. Rde1 {[%emt 0:00:30]} Qd7 {[%emt 0:00:30]} 18. h4 {[%emt 0:00:30]} Rdf8 $16 {[%emt 0:00:30]} 19. Re2 {[%emt 0:00:30]} Qd6 {[%emt 0:00:30]} 20. Ng5 {[%emt 0:00:30]} Nd8 {[%emt 0:00:30]} 21. Rhe1 {[%emt 0:00:30]} Re8 {[%emt 0:00:30]} 22. Nh1 {[%emt 0:00:30]} Bc6 {[%emt 0:00:30]} 23. Nf2 {[%emt 0:00:30]} Bd7 {[%emt 0:00:30]} 24. Re5 {[%emt 0:00:30]} Rhf8 {[%emt 0:00:30]} 25. h5 {[%emt 0:00:30]} gxh5 {[%emt 0:00:30]} 26. Nxh7 {[%emt 0:00:30]} Nxh7 {[%emt 0:00:30]} 27. Bxh7 {[%emt 0:00:30]} Nc6 {[%emt 0:00:30]} 28. Rxh5 {[%emt 0:00:30]} Rxf4 {[%emt 0:00:30]} 29. Nh3 {[%emt 0:00:30]} Rg4 {[%emt 0:00:30]} 30. Rg5 {[%emt 0:00:30]} Rxg5 {[%emt 0:00:30]} 31. Qxg5 {[%emt 0:00:30]} e5 {[%emt 0:00:30]} 32. dxe5 {[%emt 0:00:30]} Nxe5 {[%emt 0:00:30]} 33. Rd1 {[%emt 0:00:30]} b4 {[%emt 0:00:30]} 34. cxb4 {[%emt 0:00:30]} d4 {[%emt 0:00:30]} 35. Qd2 {[%emt 0:00:30]} d3 {[%emt 0:00:30]} 36. Nf2 {[%emt 0:00:30]} Nc6 {[%emt 0:00:30]} 37. Ne4 {[%emt 0:00:30]} Qd4 {[%emt 0:00:30]} 38. Qf4 {[%emt 0:00:30]} Ne5 {[%emt 0:00:30]} 39. Qf6 {[%emt 0:00:30]} Be6 {[%emt 0:00:30]} 40. Qf2 {[%emt 0:00:30]} Qxf2 {[%emt 0:00:30]} 41. Nxf2 {[%emt 0:00:30]} Nc6 {[%emt 0:00:30]} 42. a3 {[%emt 0:00:30]} Bd5 {[%emt 0:00:30]} 43. Bf5+ {[%emt 0:00:30]} Kc7 {[%emt 0:00:30]} 44. Nxd3 {[%emt 0:00:30]} cxd3 {[%emt 0:00:30]} 45. Bxd3 {[%emt 0:00:30]} Kb6 {[%emt 0:00:30]} 46. Bxa6 {[%emt 0:00:30]} Bb3 {[%emt 0:00:30]} 47. Rd3 {[%emt 0:00:30]} Bf7 {[%emt 0:00:30]} 48. b5 {[%emt 0:00:30]} Na5 {[%emt 0:00:30]} 49. Rd7 {[%emt 0:00:30]} Nb3+ {[%emt 0:00:30]} 50. Kd1 {[%emt 0:00:30]} Bc4 {[%emt 0:00:30]} 51. Kc2 {[%emt 0:00:30]} Rg8 {[%emt 0:00:30]} 1/2-1/2

[Event "FIDE World Cup O10-B 2024"]
[Site "Batumi"]
[Date "2024.06.26"]
[Round "4.3"]
[White "Shogdzhiev, Roman"]
[Black "Akramov, Khasan"]
[Result "1-0"]
[ECO "B36"]
[WhiteElo "2060"]
[BlackElo "1718"]
[Annotator "NA RC"]
[PlyCount "69"]
[EventDate "2024.06.23"]
[EventType "swiss"]
[EventCountry "GEO"]
[SourceTitle "playchess.com"]
[Source "ChessBase"]
[SourceQuality "1"]
[TimeControl "5400+30"]

1. e4 {[%emt 0:00:00]} c5 {[%emt 0:01:53]} 2. Nf3 {[%emt 0:00:00]} g6 {[%emt 0:00:30]} 3. d4 {[%emt 0:00:00]} cxd4 {[%emt 0:00:30]} 4. Nxd4 {[%emt 0:00:00]} Nc6 {[%emt 0:00:30]} 5. c4 {[%emt 0:00:00]} Nf6 {[%emt 0:00:30]} 6. Nc3 {[%emt 0:00:00]} Nxd4 {[%emt 0:00:30]} 7. Qxd4 {[%emt 0:00:00]} d6 $1 {[%emt 0:00:30]} 8. f3 {[%emt 0:00:00]} Bg7 {[%emt 0:00:30]} 9. Be3 {[%emt 0:00:00]} O-O {[%emt 0:00:30]} 10. Qd2 {[%emt 0:00:00]} a5 {[%emt 0:00:30] B36: Sicilian: Maroczy Bind: Gurgenidze System.} 11. Na4 {[%emt 0:00:26]} Nd7 {[%emt 0:00:30]} 12. Rd1 {[%emt 0:00:30] has lost popularity (12.0-0-0).} b6 {[%emt 0:00:30]} 13. Be2 {[%emt 0:00:30]} Bb7 {[%emt 0:00:30]} 14. O-O {[%emt 0:00:30]} Nc5 {[%emt 0:00:30]} 15. Nc3 {[%emt 0:00:30]} f5 $146 {[%emt 0:00:30]} ({Predecessor:} 15... Bc6 16. Nd5 f5 17. exf5 Rxf5 18. Bd3 Rf8 19. Rfe1 Bxd5 20. cxd5 Qd7 21. Qe2 Nxd3 22. Rxd3 {1-0 Browning,I (2006)-Ridge,M (1818) Ayr op 2023 (1)}) 16. exf5 {[%emt 0:00:30]} Rxf5 {[%emt 0:00:30]} 17. Nd5 {[%emt 0:00:30]} Bxd5 {[%emt 0:00:30]} 18. cxd5 {[%emt 0:00:30]} Qd7 {[%emt 0:00:30]} 19. b3 {[%emt 0:00:30]} b5 {[%emt 0:00:30]} 20. Rc1 {[%emt 0:00:30]} Re5 {[%emt 0:00:30]} 21. f4 {[%emt 0:00:30]} Re4 {[%emt 0:00:30]} 22. Bf3 {[%emt 0:00:30]} Rb4 {[%emt 0:00:30]} 23. Kh1 {[%emt 0:00:30]} Rc8 {[%emt 0:00:30]} 24. Qd1 {[%emt 0:00:30]} Ne4 {[%emt 0:00:30]} 25. Rxc8+ {[%emt 0:00:30]} Qxc8 {[%emt 0:00:30]} 26. a3 {[%emt 0:00:30]} Qc3 {[%emt 0:00:30]} 27. axb4 {[%emt 0:00:30]} Qxe3 {[%emt 0:00:30]} 28. Bxe4 {[%emt 0:00:30]} Qxe4 {[%emt 0:00:30]} 29. bxa5 {[%emt 0:00:30]} Qb4 {[%emt 0:00:30]} 30. Qe1 {[%emt 0:00:30]} Bc3 {[%emt 0:00:30]} 31. Qe6+ {[%emt 0:00:30]} Kf8 {[%emt 0:00:30]} 32. a6 {[%emt 0:00:30]} Bd4 {[%emt 0:00:30]} 33. f5 {[%emt 0:00:30]} g5 {[%emt 0:00:30]} 34. f6 {[%emt 0:00:30]} Bxf6 {[%emt 0:00:30]} 35. a7 {[%emt 0:12:26]} 1-0

[Event "FIDE World Cup O10-B 2024"]
[Site "Batumi"]
[Date "2024.06.26"]
[Round "4.4"]
[White "Kazimzade, Mahammad"]
[Black "Ling, Chenxuan"]
[Result "0-1"]
[ECO "B23"]
[WhiteElo "1594"]
[BlackElo "1868"]
[Annotator "NA RC"]
[PlyCount "168"]
[EventDate "2024.06.23"]
[EventType "swiss"]
[EventCountry "GEO"]
[SourceTitle "playchess.com"]
[Source "ChessBase"]
[SourceQuality "1"]
[TimeControl "5400+30"]

1. e4 {[%emt 0:06:39]} c5 {[%emt 0:00:00]} 2. Nc3 {[%emt 0:00:30]} Nc6 {[%emt 0:00:00]} 3. Bb5 {[%emt 0:00:30]} Nd4 {[%emt 0:00:00]} 4. Nf3 {[%emt 0:00:30]} Nxb5 {[%emt 0:00:02]} 5. Nxb5 {[%emt 0:00:30]} a6 {[%emt 0:00:30]} 6. Nc3 {[%emt 0:00:30]} d6 {[%emt 0:00:30]} 7. d4 {[%emt 0:00:30]} cxd4 $14 {[%emt 0:00:30]} 8. Nxd4 {[%emt 0:00:30]} g6 {[%emt 0:00:30]} 9. O-O {[%emt 0:00:30]} Bg7 {[%emt 0:00:30]} 10. Be3 {[%emt 0:00:30]} Nf6 {[%emt 0:00:30]} 11. Qd2 {[%emt 0:00:30]} O-O {[%emt 0:00:30]} 12. Bh6 {[%emt 0:00:30]} Qc7 {[%emt 0:00:30]} 13. Bxg7 {[%emt 0:00:30]} Kxg7 {[%emt 0:00:30]} 14. f4 {[%emt 0:00:30]} b5 {[%emt 0:00:30]} 15. a3 {[%emt 0:00:30]} Bb7 {[%emt 0:00:30]} 16. Rae1 {[%emt 0:00:30]} Rad8 {[%emt 0:00:30]} 17. f5 {[%emt 0:00:30]} Qc5 {[%emt 0:00:30]} 18. Kh1 {[%emt 0:00:30]} Ng4 {[%emt 0:00:30]} 19. Rf4 {[%emt 0:00:30]} Nf6 {[%emt 0:00:30]} 20. Rh4 {[%emt 0:00:30]} Kh8 {[%emt 0:00:30]} 21. fxg6 {[%emt 0:00:30]} fxg6 {[%emt 0:00:30]} 22. Ne6 {[%emt 0:00:30]} Qe5 {[%emt 0:00:30]} 23. Nxd8 {[%emt 0:00:30]} Rxd8 {[%emt 0:00:30]} 24. Qh6 {[%emt 0:00:30]} g5 {[%emt 0:00:30]} 25. Rh3 {[%emt 0:00:30]} Bc8 {[%emt 0:00:30]} 26. Rf3 {[%emt 0:00:30]} Rg8 {[%emt 0:00:30]} 27. Ref1 {[%emt 0:00:30]} Ng4 {[%emt 0:00:30]} 28. Qh5 {[%emt 0:00:30]} Nf6 {[%emt 0:00:30]} 29. Qf7 {[%emt 0:00:30]} Rg7 {[%emt 0:00:30]} 30. Qb3 {[%emt 0:00:30]} g4 {[%emt 0:00:30]} 31. Rf4 {[%emt 0:00:30]} g3 {[%emt 0:00:30]} 32. Rh4 {[%emt 0:00:30]} Be6 {[%emt 0:00:30]} 33. Nd5 {[%emt 0:00:30]} Nxe4 {[%emt 0:00:30]} 34. Rf8+ {[%emt 0:00:30]} Bg8 {[%emt 0:00:30]} 35. Ne3 {[%emt 0:00:30]} Nf2+ {[%emt 0:00:30]} 36. Kg1 {[%emt 0:00:30]} Qg5 {[%emt 0:00:30]} 37. hxg3 {[%emt 0:00:30]} Qxg3 {[%emt 0:00:30]} 38. Rh2 {[%emt 0:00:30]} Ng4 {[%emt 0:00:30]} 39. Nxg4 {[%emt 0:00:30]} Qe1+ {[%emt 0:00:30]} 40. Rf1 {[%emt 0:00:30]} Qxf1+ {[%emt 0:00:30]} 41. Kxf1 {[%emt 0:00:30]} Bxb3 {[%emt 0:00:30]} 42. Ne3 {[%emt 0:00:30]} Bg8 {[%emt 0:00:30]} 43. Rh4 {[%emt 0:00:30]} e5 {[%emt 0:00:30]} 44. a4 {[%emt 0:00:30]} d5 {[%emt 0:00:30]} 45. axb5 {[%emt 0:00:30]} axb5 {[%emt 0:00:30]} 46. Rb4 {[%emt 0:00:30]} d4 {[%emt 0:00:30]} 47. Nf5 {[%emt 0:00:30]} Rc7 {[%emt 0:00:30]} 48. Nh6 {[%emt 0:00:30]} Be6 {[%emt 0:00:30]} 49. b3 {[%emt 0:00:30]} Kg7 {[%emt 0:00:30]} 50. Rxb5 {[%emt 0:00:30]} Kxh6 {[%emt 0:00:30]} 51. Rxe5 {[%emt 0:00:30]} Bf7 {[%emt 0:00:30]} 52. Rf5 {[%emt 0:00:30]} Bg6 {[%emt 0:00:30]} 53. Rd5 {[%emt 0:00:30]} Bxc2 {[%emt 0:00:30]} 54. Rxd4 {[%emt 0:00:30]} Bxb3 {[%emt 0:00:30]} 55. Rg4 {[%emt 0:00:30]} Be6 {[%emt 0:00:30]} 56. Re4 {[%emt 0:00:30]} Bf5 {[%emt 0:00:30]} 57. Re3 {[%emt 0:00:30]} Kg5 {[%emt 0:00:30]} 58. Kg1 {[%emt 0:00:30]} Rc2 {[%emt 0:00:30]} 59. Kh2 {[%emt 0:00:30]} h5 {[%emt 0:00:30]} 60. Rg3+ {[%emt 0:00:30]} Kf6 {[%emt 0:00:30]} 61. Rg8 {[%emt 0:00:30]} h4 {[%emt 0:00:30]} 62. Rf8+ {[%emt 0:00:30]} Kg5 {[%emt 0:00:30]} 63. Rg8+ {[%emt 0:00:30]} Kf4 {[%emt 0:00:30]} 64. Rg7 {[%emt 0:00:30]} Rd2 {[%emt 0:00:30]} 65. Rg8 {[%emt 0:00:30]} Ra2 {[%emt 0:00:30]} 66. Rg7 {[%emt 0:00:30]} Rb2 {[%emt 0:00:30]} 67. Rg8 {[%emt 0:00:30]} Rc2 {[%emt 0:00:30]} 68. Rg7 {[%emt 0:00:30]} Rc6 {[%emt 0:00:30]} 69. Rg8 {[%emt 0:00:30]} Rg6 {[%emt 0:00:30]} 70. Rb8 {[%emt 0:00:30]} Ra6 {[%emt 0:00:30]} 71. Rg8 {[%emt 0:00:30]} Ra2 {[%emt 0:00:30]} 72. Rg7 {[%emt 0:00:30]} h3 {[%emt 0:00:30]} 73. Rg8 {[%emt 0:00:30]} Bg4 {[%emt 0:00:30]} 74. Rf8+ {[%emt 0:00:30]} Ke5 {[%emt 0:00:30]} 75. Re8+ {[%emt 0:00:30]} Kf6 {[%emt 0:00:30]} 76. Kh1 {[%emt 0:00:30]} hxg2+ {[%emt 0:00:30]} 77. Kg1 {[%emt 0:00:30]} Kg5 {[%emt 0:00:30]} 78. Re1 {[%emt 0:00:30]} Bf3 {[%emt 0:00:30]} 79. Kh2 {[%emt 0:00:30]} Rf2 {[%emt 0:00:30]} 80. Kg1 {[%emt 0:00:30]} Ra2 {[%emt 0:00:30]} 81. Kh2 {[%emt 0:00:30]} Kf4 {[%emt 0:00:30]} 82. Kg1 {[%emt 0:00:30]} Kg3 {[%emt 0:00:30]} 83. Rc1 {[%emt 0:00:30]} Rd2 {[%emt 0:00:30]} 84. Ra1 {[%emt 0:00:30]} Kh3 {[%emt 0:00:30]} 0-1

[Event "FIDE World Cup O10-B 2024"]
[Site "Batumi"]
[Date "2024.06.26"]
[Round "4.5"]
[White "Shen, Houlin"]
[Black "Rahul Ramakrishnan"]
[Result "0-1"]
[ECO "C06"]
[WhiteElo "1583"]
[BlackElo "1838"]
[Annotator "NA RC"]
[PlyCount "36"]
[EventDate "2024.06.23"]
[EventType "swiss"]
[EventCountry "GEO"]
[SourceTitle "playchess.com"]
[Source "ChessBase"]
[SourceQuality "1"]
[TimeControl "5400+30"]

1. e4 {[%emt 0:04:01]} e6 {[%emt 0:00:29]} 2. d4 {[%emt 0:00:30]} d5 {[%emt 0:00:30]} 3. Nd2 {[%emt 0:00:30]} Nf6 {[%emt 0:00:30]} 4. e5 {[%emt 0:00:30]} Nfd7 {[%emt 0:00:30]} 5. Bd3 {[%emt 0:00:30]} c5 {[%emt 0:00:30]} 6. c3 {[%emt 0:00:30]} b6 {[%emt 0:00:30]} 7. h4 {[%emt 0:00:30]} Ba6 {[%emt 0:00:30]} 8. Bxa6 {[%emt 0:00:30]} Nxa6 {[%emt 0:00:30]} 9. Ndf3 {[%emt 0:00:30]} cxd4 {[%emt 0:00:30]} 10. cxd4 {[%emt 0:00:30]} Bb4+ {[%emt 0:00:30]} 11. Bd2 $14 {[%emt 0:00:30]} Bxd2+ {[%emt 0:00:30]} 12. Qxd2 {[%emt 0:00:30]} O-O {[%emt 0:00:30]} 13. Ne2 {[%emt 0:00:30]} f6 {[%emt 0:00:30]} 14. exf6 {[%emt 0:00:30]} Nxf6 {[%emt 0:00:30]} 15. Nc3 {[%emt 0:00:30]} b5 {[%emt 0:00:30]} 16. Qe2 {[%emt 0:00:30]} Nc7 {[%emt 0:00:30]} 17. a3 {[%emt 0:00:30]} Rb8 {[%emt 0:00:30]} 18. O-O {[%emt 0:00:30]} Ra8 {[%emt 0:37:46]} 0-1

[Event "FIDE World Cup O10-B 2024"]
[Site "Batumi"]
[Date "2024.06.26"]
[Round "4.6"]
[White "Azimov, Yasin"]
[Black "Jibladze, Nikoloz"]
[Result "1/2-1/2"]
[ECO "B21"]
[WhiteElo "1833"]
[BlackElo "1612"]
[Annotator "NA RC"]
[PlyCount "111"]
[EventDate "2024.06.23"]
[EventType "swiss"]
[EventCountry "GEO"]
[SourceTitle "playchess.com"]
[Source "ChessBase"]
[SourceQuality "1"]
[TimeControl "5400+30"]

1. e4 c5 2. d3 Nc6 3. f4 d6 4. Nf3 g6 5. c3 Bg7 6. Be2 e6 7. O-O Nge7 8. Be3 O-O 9. Nbd2 f5 10. Qe1 b6 11. Kh1 fxe4 12. dxe4 d5 13. Rd1 Qc7 14. g3 Bb7 15. Ng5 Nd8 16. Bg4 Qc8 17. exd5 h6 18. Nge4 Nxd5 19. Bf3 Nf7 20. Nc4 Qc7 21. Bg1 Ba6 22. b3 Rad8 23. Bg4 Rfe8 24. Rf2 Bb7 25. Bf3 b5 26. Ne3 Nxe3 27. Rxd8 Rxd8 28. Qxe3 c4 29. Nc5 Bxf3+ 30. Rxf3 Qc6 31. Qe4 Qxe4 32. Nxe4 Rd1 33. bxc4 bxc4 34. Kg2 Nd6 35. Nxd6 Rxd6 36. Bxa7 Ra6 37. Bc5 Rxa2+ 38. Kh3 Kf7 39. Re3 Rc2 40. Bb4 Rc1 41. Kg4 Bf6 42. Kf3 g5 43. Ke4 g4 44. f5 exf5+ 45. Kxf5 h5 46. Re4 Bxc3 47. Rxc4 Bd2 48. Rxc1 Bxc1 49. Bc5 Bb2 50. Kg5 Ke6 51. Kxh5 Kf5 52. Be7 Bd4 53. Bd8 Bg1 54. Kh4 Bxh2 55. Bb6 Bxg3+ 56. Kxg3 1/2-1/2

[Event "FIDE World Cup O10-B 2024"]
[Site "Batumi"]
[Date "2024.06.26"]
[Round "4.7"]
[White "Lazarev, Egor"]
[Black "Karthik, Anand T."]
[Result "0-1"]
[ECO "C07"]
[WhiteElo "1683"]
[BlackElo "2022"]
[Annotator "RC"]
[PlyCount "94"]
[EventDate "2024.06.23"]
[EventType "swiss"]
[EventCountry "GEO"]
[SourceTitle "playchess.com"]
[Source "ChessBase"]
[SourceQuality "1"]
[TimeControl "5400+30"]

1. e4 {[%emt 0:00:00]} e6 {[%emt 0:01:59]} 2. d4 {[%emt 0:00:16]} d5 {[%emt 0:00:30]} 3. Nd2 {[%emt 0:00:30]} c5 {[%emt 0:00:30]} 4. exd5 {[%emt 0:00:30]} Qxd5 {[%emt 0:00:30]} 5. Ngf3 {[%emt 0:00:30]} cxd4 {[%emt 0:00:30]} 6. Bc4 {[%emt 0:00:30]} Qd8 {[%emt 0:00:30]} 7. O-O {[%emt 0:00:30]} Nc6 {[%emt 0:00:30]} 8. Nb3 {[%emt 0:00:30]} Nf6 {[%emt 0:00:30]} 9. Nbxd4 {[%emt 0:00:30]} Nxd4 {[%emt 0:00:30]} 10. Qxd4 {[%emt 0:00:30]} Qxd4 {[%emt 0:00:30]} 11. Nxd4 {[%emt 0:00:30]} a6 {[%emt 0:00:30]} 12. c3 {[%emt 0:00:30]} Bc5 {[%emt 0:00:30]} 13. Nb3 {[%emt 0:00:30]} Be7 {[%emt 0:00:30]} 14. Be3 {[%emt 0:00:30]} b5 {[%emt 0:00:30]} 15. Be2 {[%emt 0:00:30]} Nd5 {[%emt 0:00:30]} 16. Bd4 {[%emt 0:00:30]} O-O {[%emt 0:00:30]} 17. Bf3 {[%emt 0:00:30]} Bd7 {[%emt 0:00:30]} 18. Bxd5 {[%emt 0:00:30]} exd5 {[%emt 0:00:30]} 19. Bc5 {[%emt 0:00:30]} Bxc5 {[%emt 0:00:30]} 20. Nxc5 {[%emt 0:00:30]} Bc6 {[%emt 0:00:30]} 21. f3 {[%emt 0:00:30]} a5 {[%emt 0:00:30]} 22. a3 {[%emt 0:00:30]} Rfb8 {[%emt 0:00:30]} 23. b4 {[%emt 0:00:30]} Re8 {[%emt 0:00:30]} 24. Kf2 {[%emt 0:00:30]} Re7 {[%emt 0:00:30]} 25. Nb3 {[%emt 0:00:30]} a4 {[%emt 0:00:30]} 26. Nc5 {[%emt 0:00:30]} Rae8 {[%emt 0:00:30]} 27. Rfe1 {[%emt 0:00:30]} Rxe1 {[%emt 0:00:30]} 28. Rxe1 {[%emt 0:00:30]} Rxe1 {[%emt 0:00:30]} 29. Kxe1 {[%emt 0:00:30]} Kf8 {[%emt 0:00:30]} 30. Kd2 {[%emt 0:00:30]} Ke7 {[%emt 0:00:30]} 31. Ke3 {[%emt 0:00:30]} Kd6 {[%emt 0:00:30]} 32. Kd4 {[%emt 0:00:30]} f6 {[%emt 0:00:30]} 33. g4 {[%emt 0:00:30]} g5 {[%emt 0:00:30]} 34. Nd3 {[%emt 0:00:30]} Bd7 {[%emt 0:00:30]} 35. Nc1 {[%emt 0:00:30]} f5 {[%emt 0:00:30]} 36. gxf5 {[%emt 0:00:30]} Bxf5 {[%emt 0:00:30]} 37. Ne2 {[%emt 0:00:30]} h5 {[%emt 0:00:30]} 38. Ke3 {[%emt 0:00:30]} Bd7 {[%emt 0:00:30]} 39. f4 {[%emt 0:00:30]} g4 {[%emt 0:00:30]} 40. h4 {[%emt 0:00:30]} gxh3 {[%emt 0:00:30]} 41. Ng3 {[%emt 0:00:30]} h4 {[%emt 0:00:30]} 42. Nf1 {[%emt 0:00:30]} Bf5 {[%emt 0:00:30]} 43. Nh2 {[%emt 0:00:30]} Be4 {[%emt 0:00:30]} 44. c4 {[%emt 0:00:30]} bxc4 {[%emt 0:00:30]} 45. Kd4 {[%emt 0:00:30]} Bf5 {[%emt 0:00:30]} 46. Nf3 {[%emt 0:00:30]} Bg4 {[%emt 0:00:30]} 47. Nh2 {[%emt 0:00:30]} Bd7 {[%emt 0:00:30]} 0-1

[Event "FIDE World Cup O10-B 2024"]
[Site "Batumi"]
[Date "2024.06.26"]
[Round "4.8"]
[White "Akramov, Khusan"]
[Black "Zhauynbay, Alimzhan"]
[Result "0-1"]
[ECO "A25"]
[WhiteElo "1477"]
[BlackElo "1903"]
[Annotator "NA RC"]
[PlyCount "62"]
[EventDate "2024.06.23"]
[EventType "swiss"]
[EventCountry "GEO"]
[SourceTitle "playchess.com"]
[Source "ChessBase"]
[SourceQuality "1"]
[TimeControl "5400+30"]

1. c4 {[%emt 0:00:00]} e5 {[%emt 0:04:30]} 2. g3 {[%emt 0:00:00]} Nc6 {[%emt 0:00:30]} 3. Bg2 {[%emt 0:00:12]} Bc5 {[%emt 0:00:30]} 4. Nc3 {[%emt 0:00:30]} d6 {[%emt 0:00:30]} 5. a3 {[%emt 0:00:30]} a5 {[%emt 0:00:30]} 6. e3 {[%emt 0:00:30]} h5 {[%emt 0:00:30]} 7. h3 {[%emt 0:00:30]} h4 {[%emt 0:00:30]} 8. g4 {[%emt 0:00:30]} f5 {[%emt 0:00:30]} 9. f3 {[%emt 0:00:30]} Nf6 {[%emt 0:00:30]} 10. Nge2 {[%emt 0:00:30]} O-O {[%emt 0:00:30]} 11. d3 {[%emt 0:00:30]} Ba7 {[%emt 0:00:30]} 12. Bd2 {[%emt 0:00:30]} Be6 {[%emt 0:00:30]} 13. Qc2 {[%emt 0:00:30]} Qd7 {[%emt 0:00:30]} 14. O-O-O {[%emt 0:00:30]} Ne7 {[%emt 0:00:30]} 15. g5 {[%emt 0:00:30]} Nh7 {[%emt 0:00:30]} 16. f4 {[%emt 0:00:30]} c6 {[%emt 0:00:30]} 17. Ng1 {[%emt 0:00:30]} Rab8 {[%emt 0:00:30]} 18. Nf3 {[%emt 0:00:30]} Ng6 {[%emt 0:00:30]} 19. a4 {[%emt 0:00:30]} Rfc8 {[%emt 0:00:30]} 20. c5 {[%emt 0:00:30]} Bxc5 {[%emt 0:00:30]} 21. fxe5 {[%emt 0:00:30]} dxe5 {[%emt 0:00:30]} 22. d4 {[%emt 0:00:30]} exd4 {[%emt 0:00:30]} 23. exd4 {[%emt 0:00:30]} Bd6 {[%emt 0:00:30]} 24. Be1 {[%emt 0:00:30]} Qf7 {[%emt 0:00:30]} 25. Qf2 {[%emt 0:00:30]} Bg3 {[%emt 0:00:30]} 26. Qg1 {[%emt 0:00:30]} Bf4+ {[%emt 0:00:30]} 27. Bd2 {[%emt 0:00:30]} Bd6 {[%emt 0:00:30]} 28. Be1 {[%emt 0:00:30]} Bb3 {[%emt 0:00:30]} 29. Rd3 {[%emt 0:00:30]} b5 {[%emt 0:00:30]} 30. axb5 {[%emt 0:00:30]} cxb5 {[%emt 0:00:30]} 31. Kd2 {[%emt 0:00:30]} b4 {[%emt 0:00:30]} 0-1